bitfinex-derivatives/quotes_BTCF0:USTF0_20251219
["timestamp","ask_amount","ask_price","bid_price","bid_amount"]
[1766113578907,0.0116139,86151.0,86129.0,0.0116167]
[1766113579112,0.00592,86150.0,86128.0,0.0116169]
[1766113579312,0.00592,86150.0,86131.0,0.0116165]
[1766113579511,0.00017412,86149.0,86132.0,0.00017412]
[1766113579901,0.00017412,86149.0,86139.0,0.0116154]
[1766113580113,0.00017412,86149.0,86132.0,0.00017412]
[1766113580114,0.00017412,86149.0,86137.0,0.0116157]
[1766113580309,0.00592,86148.0,86137.0,0.0116157]
[1766113580518,0.00017412,86149.0,86137.0,0.0116157]
[1766113580701,0.00592,86147.0,86137.0,0.0116157]
[1766113580906,0.00592,86147.0,86133.0,0.0116162]
[1766113581404,0.00017412,86149.0,86132.0,0.00017412]
[1766113581606,0.0116099,86181.0,86142.0,0.00526]
[1766113581820,0.0116094,86185.0,86161.0,0.0116125]
[1766113582514,0.01178382,86182.0,86164.0,0.00017412]
[1766113582708,0.0116101,86179.0,86164.0,0.00017412]
[1766113582910,0.00017412,86182.0,86164.0,0.00017412]
[1766113583316,0.00017412,86182.0,86164.0,4.12e-06]
[1766113583317,0.14816,86180.0,86164.0,4.12e-06]
[1766113583613,0.1597704,86177.0,86154.0,0.0116134]
[1766113583921,0.1597704,86177.0,86140.0,0.2024253]
[1766113583922,0.14816,86161.0,86140.0,0.0116153]
[1766113584118,0.0116131,86157.0,86128.0,0.00549]
[1766113584321,0.0116135,86154.0,86132.0,0.0116163]
[1766113584620,0.00017412,86152.0,86135.0,0.00017412]
[1766113584813,0.00592,86151.0,86135.0,0.00017412]
[1766113589015,0.0175339,86151.0,86135.0,0.00017412]
[1766113590126,0.0116117,86168.0,86141.0,0.00543]
[1766113590318,0.00404,86167.0,86150.0,0.2134393]
[1766113590520,0.00404,86166.0,86150.0,0.011014]
[1766113590723,0.00404,86166.0,86152.0,0.0116136]
[1766113590911,0.0116096,86183.0,86155.0,0.0116133]
[1766113591115,0.10317244,86203.0,86136.0,0.0116158]
[1766113591116,0.14816,86177.0,86152.0,0.0116136]
[1766113591331,0.14816,86177.0,86156.0,0.00017412]
[1766113591332,0.00017412,86173.0,86156.0,0.00017412]
[1766113591626,0.00592,86172.0,86156.0,0.00017412]
[1766113592724,0.0116122,86164.0,86156.0,0.00017412]
[1766113592922,0.00592,86163.0,86140.0,0.2024253]
[1766113593118,0.00592,86163.0,86150.0,0.0116139]
[1766113594326,0.00017412,86165.0,86148.0,0.00017412]
[1766113594525,0.0024,86164.0,86148.0,0.00017412]
[1766113594937,0.00017412,86165.0,86148.0,0.00017412]
[1766113595126,0.00017412,86165.0,86152.0,0.0116136]
[1766113595127,0.0024,86164.0,86152.0,0.0116136]
[1766113595530,0.0024,86164.0,86148.0,0.00017412]
[1766113595531,0.0024,86164.0,86150.0,0.0116139]
[1766113595925,0.0024,86164.0,86153.0,0.0116136]
[1766113596520,0.00592,86163.0,86148.0,0.00017412]
[1766113596828,0.00017412,86165.0,86156.0,0.0116131]
[1766113597028,0.0024,86164.0,86156.0,0.0116131]
[1766113598220,0.0116123,86163.0,86148.0,0.00017412]
[1766113598721,0.0024,86164.0,86148.0,0.01178832]
[1766113599225,0.0024,86164.0,86150.0,0.0116139]
[1766113599531,2.44568,86163.0,86150.0,0.0116139]
[1766113599828,2.44568,86163.0,86153.0,0.0116136]
[1766113600223,2e-08,86165.0,86164.0,0.0116121]
[1766113600529,2e-08,86165.0,86161.0,0.0116125]
[1766113600730,2e-08,86165.0,86164.0,0.0116121]
[1766113601026,2e-08,86165.0,86160.0,0.0116125]
[1766113601234,0.14816,86193.0,86160.0,0.2032053]
[1766113601418,0.26286597,86215.0,86145.0,0.0116146]
[1766113601419,0.14816,86204.0,86169.0,0.2032053]
[1766113601725,0.0116066,86205.0,86186.0,0.0116091]
[1766113601930,0.00017401,86204.0,86188.0,0.0116088]
[1766113602117,0.00017401,86204.0,86190.0,0.0116085]
[1766113602323,2.44564,86203.0,86190.0,0.0116085]
[1766113602520,2.44564,86203.0,86187.0,0.01178301]
[1766113603823,2.44552,86202.0,86187.0,0.01178301]
[1766113604432,0.1418,86194.0,86174.0,0.0116106]
[1766113604728,0.1418,86188.0,86150.0,0.2024253]
[1766113605037,0.0116101,86180.0,86163.0,0.0116121]
[1766113605332,0.00592,86179.0,86163.0,0.0116121]
[1766113605725,0.0116103,86178.0,86162.0,0.00017401]
[1766113605921,0.1418,86178.0,86162.0,0.00017401]
[1766113606124,0.0116114,86169.0,86162.0,4.01e-06]
[1766113606327,0.00592,86168.0,86162.0,4.01e-06]
[1766113608129,2.44528,86167.0,86162.0,4.01e-06]
[1766113609138,0.0116118,86166.0,86162.0,4.01e-06]
[1766113609943,2.4568918,86167.0,86162.0,4.01e-06]
[1766113610332,0.1418,86170.0,86162.0,4.01e-06]
[1766113610536,0.0116117,86168.0,86162.0,4.01e-06]
[1766113612139,2.44528,86167.0,86151.0,0.0116137]
[1766113612339,2.44528,86167.0,86154.0,0.0116134]
[1766113612528,2.44528,86166.0,86158.0,0.0116128]
[1766113612724,0.1418,86179.0,86158.0,0.0116128]
[1766113612927,2.4568902,86178.0,86150.0,0.2024253]
[1766113613131,0.00017412,86173.0,86159.0,0.0116128]
[1766113613333,0.00592,86172.0,86156.0,0.0116132]
[1766113613528,0.00592,86171.0,86158.0,0.0116128]
[1766113614128,0.00017412,86173.0,86155.0,0.00017412]
[1766113614444,2e-08,86173.0,86160.0,0.2024253]
[1766113614738,0.00592,86172.0,86169.0,0.0116114]
[1766113614938,2e-08,86173.0,86166.0,0.0116118]
[1766113615126,0.0022,86172.0,86166.0,0.0116118]
[1766113615327,0.00592,86171.0,86166.0,0.0116118]
[1766113615527,0.00592,86171.0,86160.0,0.2024253]
[1766113615528,2e-08,86173.0,86169.0,0.0116114]
[1766113615732,0.00592,86172.0,86171.0,0.0116111]
[1766113616336,0.00592,86172.0,86168.0,0.0116115]
[1766113616538,2e-08,86173.0,86170.0,0.0116112]
[1766113617044,0.00592,86172.0,86166.0,0.0116118]
[1766113617236,0.00592,86172.0,86155.0,0.00017412]
[1766113617446,0.00592,86172.0,86159.0,0.0116127]
[1766113618339,2e-08,86173.0,86155.0,0.00017412]
[1766113618938,0.00592,86172.0,86155.0,0.00017412]
[1766113619133,2e-08,86173.0,86155.0,0.00017412]
[1766113619338,0.00292,86171.0,86155.0,0.00017412]
[1766113619739,0.00292,86171.0,86163.0,0.0116122]
[1766113620344,0.1418,86166.0,86155.0,0.00017412]
[1766113620546,0.00292,86171.0,86155.0,0.00017412]
[1766113620547,0.00292,86171.0,86155.0,0.01178742]
[1766113620735,0.00592,86170.0,86166.0,0.0116118]
[1766113620939,2e-08,86173.0,86155.0,0.00017412]
[1766113621140,0.00592,86172.0,86160.0,0.2024253]
[1766113621337,0.00592,86172.0,86155.0,0.00017412]
[1766113621942,0.00592,86172.0,86164.0,0.0116121]
[1766113622546,0.00592,86171.0,86164.0,0.0116121]
[1766113623240,0.00592,86170.0,86161.0,0.0116124]
[1766113624053,0.00592,86170.0,86163.0,0.0116122]
[1766113624248,0.00592,86170.0,86160.0,0.0116126]
[1766113625049,2e-08,86173.0,86160.0,0.0116126]
[1766113625245,2e-08,86173.0,86162.0,0.0116124]
[1766113625550,2e-08,86173.0,86156.0,0.00083]
[1766113625551,0.00592,86172.0,86161.0,0.00055]
[1766113625747,0.00592,86171.0,86169.0,0.0116113]
[1766113625949,2e-08,86173.0,86171.0,0.0116111]
[1766113626146,2e-08,86173.0,86168.0,0.0116115]
[1766113626147,0.00592,86172.0,86168.0,0.0116115]
[1766113626750,2e-08,86173.0,86161.0,0.00055]
[1766113626950,0.13877,86222.0,86168.0,0.0116115]
[1766113627148,0.0116047,86220.0,86202.0,0.0116069]
[1766113627457,0.00592,86219.0,86200.0,0.2024253]
[1766113627758,0.14469,86219.0,86190.0,0.2024253]
[1766113627952,0.2140286,86230.0,86200.0,0.0116072]
[1766113627953,0.00017399,86213.0,86200.0,0.0116072]
[1766113628257,0.0116019,86240.0,86196.0,0.00017399]
[1766113628258,0.3208,86245.0,86228.0,0.03439079]
[1766113628458,2.44508,86244.0,86228.0,0.03439079]
[1766113628656,0.13877,86243.0,86228.0,7.9e-07]
[1766113628848,0.0116023,86238.0,86228.0,7.9e-07]
[1766113629047,0.13877,86240.0,86228.0,7.9e-07]
[1766113629249,0.00592,86239.0,86228.0,7.9e-07]
[1766113629449,0.00017399,86243.0,86229.0,0.0116033]
[1766113629649,0.00592,86242.0,86228.0,7.9e-07]
[1766113630148,0.13877,86234.0,86210.0,0.2024253]
[1766113630349,0.00592,86233.0,86218.0,0.0116047]
[1766113630549,0.00592,86232.0,86211.0,0.001]
[1766113630751,0.13877,86227.0,86192.0,0.00103]
[1766113630949,0.1503745,86221.0,86201.0,0.0116071]
[1766113631161,0.00017399,86218.0,86207.0,0.0116063]
[1766113631456,0.00592,86217.0,86203.0,0.0116068]
[1766113631663,0.00592,86216.0,86214.0,0.0116054]
[1766113631858,0.2024253,86250.0,86202.0,0.00103]
[1766113631859,0.00592,86219.0,86202.0,0.00103]
[1766113632162,0.13877,86236.0,86202.0,0.00103]
[1766113632352,0.011603,86232.0,86209.0,0.2024253]
[1766113632552,0.011603,86232.0,86213.0,0.0116055]
[1766113632752,0.00017399,86231.0,86214.0,0.00017399]
[1766113633153,0.0116032,86230.0,86214.0,0.00017399]
[1766113633366,0.0116036,86228.0,86214.0,0.00017399]
[1766113633747,0.00592,86229.0,86214.0,0.00017399]
[1766113634351,0.14547,86229.0,86202.0,0.00103]
[1766113634756,0.0116048,86218.0,86202.0,0.00103]
[1766113634957,0.00592,86217.0,86202.0,0.0126369]
[1766113635158,0.0116055,86213.0,86202.0,0.00103]
[1766113635361,0.13955,86211.0,86182.0,0.0116096]
[1766113635661,0.13955,86211.0,86179.0,2.43888]
[1766113635662,0.011607,86203.0,86181.0,0.0116098]
[1766113635870,0.00592,86202.0,86181.0,0.0116098]
[1766113636165,0.00592,86202.0,86184.0,0.0116094]
[1766113636760,0.14564399,86202.0,86184.0,0.00017399]
[1766113636956,0.13955,86199.0,86184.0,0.00017399]
[1766113637154,0.0116076,86198.0,86184.0,0.00017399]
[1766113637358,0.0116082,86193.0,86184.0,0.00017399]
[1766113637657,0.00592,86192.0,86184.0,0.00017399]
[1766113637866,0.00592,86191.0,86184.0,0.00017399]
[1766113638266,9e-08,86202.0,86185.0,0.00141]
[1766113638455,9e-08,86202.0,86184.0,0.00017399]
[1766113638456,9e-08,86204.0,86190.0,0.29764428]
[1766113638956,0.1511539,86225.0,86207.0,0.0116063]
[1766113639152,0.0116031,86232.0,86201.0,0.00205]
[1766113639463,0.00592,86231.0,86225.0,0.0116039]
[1766113639663,0.00017399,86237.0,86225.0,0.0116039]
[1766113639862,0.00017399,86237.0,86228.0,0.0116034]
[1766113640065,0.00017399,86237.0,86230.0,0.0116031]
[1766113640362,0.00592,86236.0,86227.0,0.0116036]
[1766113641067,0.00017399,86237.0,86227.0,0.0116036]
[1766113641363,0.00592,86236.0,86219.0,0.01177859]
[1766113641563,0.00017399,86237.0,86219.0,0.00017399]
[1766113641869,0.00592,86236.0,86219.0,0.00017399]
[1766113642257,0.00017399,86237.0,86221.0,0.0116043]
[1766113642459,0.00592,86238.0,86227.0,0.29623428]
[1766113642864,0.09112613,86271.0,86221.0,0.0116043]
[1766113642865,0.13955,86267.0,86253.0,0.0116]
[1766113643067,0.00592,86266.0,86256.0,0.0115997]
[1766113643264,0.00592,86266.0,86255.0,0.0115998]
[1766113643471,0.00592,86266.0,86252.0,0.00017387]
[1766113643663,0.0115986,86265.0,86252.0,0.00017387]
[1766113644174,0.00592,86264.0,86252.0,0.00017387]
[1766113645062,0.00592,86264.0,86257.0,0.0115995]
[1766113645267,0.00592,86264.0,86254.0,0.0116]
[1766113645465,0.00017387,86269.0,86258.0,0.0115993]
[1766113645869,0.00592,86268.0,86256.0,0.0115996]
[1766113646065,0.00017387,86269.0,86252.0,0.00017387]
[1766113646066,7e-08,86269.0,86267.0,0.0115982]
[1766113646666,0.13955,86290.0,86271.0,0.0115977]
[1766113646859,0.00064,86289.0,86271.0,0.0115977]
[1766113647059,0.0115954,86288.0,86267.0,0.0115982]
[1766113647259,0.13955,86290.0,86258.0,0.29623428]
[1766113647558,5e-08,86274.0,86273.0,0.0115973]
[1766113647764,0.00592,86280.0,86273.0,0.0115973]
[1766113648273,0.00017387,86283.0,86276.0,0.011597]
[1766113648468,0.00017387,86283.0,86272.0,0.0115976]
[1766113648867,0.00017387,86283.0,86275.0,0.0115971]
[1766113649063,3.87e-06,86283.0,86275.0,0.0115971]
[1766113649263,3.87e-06,86283.0,86274.0,0.0115972]
[1766113650165,3.87e-06,86283.0,86279.0,0.0115966]
[1766113650474,3.87e-06,86283.0,86273.0,0.00592]
[1766113650863,3.87e-06,86283.0,86276.0,0.011597]
[1766113651059,3.87e-06,86283.0,86279.0,0.0115966]
[1766113651566,0.00231756,86298.0,86286.0,0.0115956]
[1766113651871,0.00231756,86298.0,86285.0,0.0115958]
[1766113652474,0.00231756,86298.0,86288.0,0.0115953]
[1766113652772,0.00231756,86298.0,86281.0,0.00576]
[1766113652773,0.00231756,86298.0,86285.0,0.00025]
[1766113653364,0.00231756,86298.0,86286.0,0.0115956]
[1766113653767,0.00231756,86298.0,86286.0,0.0109956]
[1766113654162,0.00231756,86298.0,86285.0,0.00025]
[1766113654163,6e-08,86298.0,86289.0,0.0115953]
[1766113654465,6e-08,86298.0,86296.0,0.0115943]
[1766113654971,6e-08,86298.0,86283.0,0.00017387]
[1766113655181,6e-08,86298.0,86284.0,0.00592]
[1766113655569,6e-08,86298.0,86283.0,0.00017387]
[1766113656075,0.0011987,86291.0,86283.0,0.00017387]
[1766113656276,0.00129815,86287.0,86283.0,0.00017387]
[1766113656480,6e-08,86298.0,86284.0,0.011596]
[1766113656672,6e-08,86298.0,86283.0,0.00017387]
[1766113657571,0.0115948,86293.0,86283.0,0.00017387]
[1766113657775,0.13955,86297.0,86283.0,0.00017387]
[1766113657964,2e-08,86300.0,86287.0,0.29623428]
[1766113658170,2e-08,86300.0,86285.0,0.0115957]
[1766113658376,2e-08,86300.0,86283.0,0.00017387]
[1766113658776,0.00112,86299.0,86283.0,0.00017387]
[1766113658984,0.1511441,86298.0,86283.0,0.00017387]
[1766113659178,0.00112,86299.0,86283.0,0.00017387]
[1766113659480,0.00112,86299.0,86288.0,0.0115953]
[1766113659664,0.00588,86299.0,86296.0,0.0115942]
[1766113659866,0.00588002,86300.0,86292.0,0.0115949]
[1766113660073,0.00588002,86300.0,86283.0,0.00017387]
[1766113660074,2e-08,86300.0,86284.0,0.0013]
[1766113660282,2e-08,86300.0,86297.0,0.0115942]
[1766113661279,4e-08,86319.0,86298.0,0.017474]
[1766113661579,6e-08,86329.0,86325.0,0.0115904]
[1766113661775,6e-08,86329.0,86310.0,0.0115925]
[1766113661776,6e-08,86329.0,86321.0,0.0115909]
[1766113662173,6e-08,86329.0,86316.0,0.00017376]
[1766113662376,6e-08,86329.0,86317.0,0.00588]
[1766113662968,6e-08,86329.0,86316.0,0.00017376]
[1766113663167,6e-08,86329.0,86317.0,0.0115915]
[1766113663371,6e-08,86329.0,86326.0,0.0115903]
[1766113663575,6e-08,86329.0,86316.0,0.00017376]
[1766113663885,6e-08,86329.0,86321.0,0.011591]
[1766113664086,6e-08,86329.0,86321.0,0.017471]
[1766113664279,6e-08,86329.0,86321.0,0.00588]
[1766113664884,6e-08,86329.0,86316.0,0.00017376]
[1766113665370,6e-08,86329.0,86316.0,0.00313376]
[1766113665677,6e-08,86329.0,86320.0,0.0115911]
[1766113665876,6e-08,86329.0,86316.0,0.00313376]
[1766113666076,5e-08,86338.0,86332.0,0.0115894]
[1766113666387,1e-08,86339.0,86329.0,0.00149]
[1766113666590,7e-08,86348.0,86341.0,0.0115882]
[1766113666776,7e-08,86348.0,86342.0,0.00588]
[1766113667278,7e-08,86348.0,86336.0,0.00017376]
[1766113667279,7e-08,86348.0,86343.0,0.00588]
[1766113667680,7e-08,86348.0,86336.0,0.00017376]
[1766113667881,7e-08,86348.0,86337.0,0.00588]
[1766113668285,0.1365,86433.0,86349.0,0.29623428]
[1766113668472,0.0115805,86399.0,86374.0,0.0115839]
[1766113668679,0.1365,86405.0,86375.0,0.01811515]
[1766113668982,0.09186808,86428.0,86375.0,0.01811515]
[1766113668983,5e-08,86396.0,86386.0,0.29623428]
[1766113669177,0.0115786,86414.0,86388.0,0.011582]
[1766113669391,3e-08,86406.0,86390.0,0.30781598]
[1766113669683,0.1365,86405.0,86382.0,0.00017364]
[1766113669881,0.00092,86404.0,86383.0,0.01810597]
[1766113670087,0.00092,86404.0,86384.0,0.01810597]
[1766113670285,3e-08,86406.0,86389.0,0.0115817]
[1766113670485,3e-08,86406.0,86382.0,0.01175644]
[1766113670688,3e-08,86406.0,86383.0,0.00592]
[1766113671088,3e-08,86406.0,86385.0,0.0115824]
[1766113671292,3e-08,86406.0,86386.0,0.00592]
[1766113671479,3e-08,86406.0,86386.0,0.0175022]
[1766113671787,3e-08,86406.0,86386.0,0.00592]
[1766113671986,3e-08,86406.0,86395.0,0.011581]
[1766113672179,3e-08,86406.0,86396.0,0.00588]
[1766113672384,3e-08,86406.0,86384.0,0.0115825]
[1766113672584,3e-08,86406.0,86386.0,0.0115822]
[1766113672982,3e-08,86406.0,86385.0,0.00588]
[1766113673182,3e-08,86406.0,86386.0,0.0115822]
[1766113673589,0.01157973,86406.0,86382.0,0.01175644]
[1766113673780,0.0115806,86399.0,86383.0,0.00588]
[1766113674084,0.0115805,86400.0,86383.0,0.00588]
[1766113674392,0.1365,86404.0,86383.0,0.00588]
[1766113674393,0.1365,86404.0,86390.0,0.0115816]
[1766113674594,0.1365,86404.0,86383.0,0.00588]
[1766113674595,0.00588,86405.0,86383.0,0.00588]
[1766113674792,3e-08,86406.0,86383.0,0.00588]
[1766113674793,3e-08,86406.0,86402.0,0.0115801]
[1766113675099,2e-08,86418.0,86413.0,0.0115786]
[1766113675281,2e-08,86418.0,86414.0,0.00588]
[1766113675793,2e-08,86418.0,86407.0,4e-08]
[1766113675994,0.1365,86416.0,86407.0,4e-08]
[1766113676494,2e-08,86418.0,86407.0,4e-08]
[1766113676684,2e-08,86418.0,86408.0,0.00588]
[1766113676988,0.0115786,86414.0,86407.0,4e-08]
[1766113677190,2e-08,86418.0,86407.0,4e-08]
[1766113678087,0.00017283,86422.0,86408.0,0.29795428]
[1766113678294,0.00017283,86422.0,86408.0,0.00172]
[1766113678682,0.00017283,86422.0,86407.0,4e-08]
[1766113678881,0.13667283,86422.0,86399.0,0.0115804]
[1766113679079,0.1365,86419.0,86380.0,0.29623428]
[1766113679402,0.0115802,86402.0,86381.0,0.00588]
[1766113679694,0.00588,86408.0,86381.0,0.00588]
[1766113679884,0.00017287,86403.0,86386.0,0.00017364]
[1766113680282,7e-08,86403.0,86400.0,0.0115803]
[1766113680595,7e-08,86403.0,86402.0,0.0115801]
[1766113680888,7e-08,86403.0,86386.0,0.00017364]
[1766113680889,7e-08,86403.0,86396.0,0.0115808]
[1766113681094,7e-08,86403.0,86398.0,0.0115806]
[1766113681295,0.13650007,86403.0,86386.0,0.00017364]
[1766113681484,7e-08,86403.0,86390.0,0.30211428]
[1766113681679,7e-08,86403.0,86390.0,0.00588]
[1766113682200,7e-08,86403.0,86397.0,0.0115807]
[1766113682390,7e-08,86403.0,86396.0,0.0115809]
[1766113682693,7e-08,86403.0,86393.0,0.0115812]
[1766113682894,7e-08,86403.0,86390.0,0.00588]
[1766113683089,7e-08,86403.0,86391.0,0.00588]
[1766113683392,7e-08,86403.0,86386.0,0.01175584]
[1766113683697,7e-08,86403.0,86387.0,0.0115821]
[1766113683887,0.01158017,86403.0,86386.0,0.00017364]
[1766113684089,7e-08,86403.0,86386.0,0.00017364]
[1766113684292,0.0115804,86400.0,86387.0,0.0034]
[1766113684592,0.0115804,86400.0,86386.0,0.00017364]
[1766113684800,0.0115817,86391.0,86386.0,3.64e-06]
[1766113685002,0.011582,86388.0,86386.0,3.64e-06]
[1766113685294,0.147,86401.0,86386.0,3.64e-06]
[1766113685485,0.147,86401.0,86386.0,0.01158584]
[1766113685687,7e-08,86403.0,86386.0,0.01158584]
[1766113685889,0.00588,86402.0,86386.0,3.64e-06]
[1766113686089,0.14112,86398.0,86386.0,3.64e-06]
[1766113686288,0.14112,86394.0,86386.0,3.64e-06]
[1766113686495,0.00588,86393.0,86386.0,3.64e-06]
[1766113686694,0.147,86393.0,86386.0,3.64e-06]
[1766113686887,0.14112,86384.0,86356.0,0.0115863]
[1766113687083,0.0115809,86397.0,86357.0,0.02206787]
[1766113687084,0.0115842,86372.0,86357.0,0.02206787]
[1766113687287,0.0115842,86372.0,86358.0,0.01810998]
[1766113687500,0.14112,86373.0,86336.0,2.43304]
[1766113687696,0.00588,86376.0,86337.0,0.01811198]
[1766113687697,0.14112,86368.0,86337.0,0.01811198]
[1766113687895,0.14112,86368.0,86330.0,0.00010766]
[1766113687896,0.0115883,86342.0,86330.0,0.00010766]
[1766113688589,0.0115882,86342.0,86330.0,0.00010766]
[1766113688789,0.00588,86357.0,86336.0,0.0115889]
[1766113689090,0.00588,86357.0,86330.0,0.29634194]
[1766113689091,0.0115865,86355.0,86338.0,0.00017364]
[1766113689406,0.14112,86350.0,86330.0,0.00010766]
[1766113689592,0.00588,86349.0,86330.0,0.00010766]
[1766113689790,0.00588,86349.0,86334.0,0.0115891]
[1766113690001,0.00588,86349.0,86337.0,0.0115888]
[1766113690394,0.00588,86349.0,86334.0,0.00017364]
[1766113690594,0.00588,86349.0,86335.0,0.0115891]
[1766113690789,0.00588,86349.0,86339.0,0.0115885]
[1766113691192,0.00588,86349.0,86335.0,0.0115891]
[1766113691589,0.00588,86349.0,86334.0,0.00017364]
[1766113691796,0.00017364,86361.0,86334.0,0.00017364]
[1766113691797,0.14129364,86361.0,86340.0,0.0115884]
[1766113691996,0.14112,86359.0,86334.0,3.64e-06]
[1766113692602,0.14112,86359.0,86340.0,0.0115883]
[1766113692904,0.14112,86359.0,86339.0,0.0115885]
[1766113693086,0.14112,86359.0,86342.0,0.0115881]
[1766113693287,0.00017364,86361.0,86357.0,0.0115861]
[1766113693288,4e-08,86361.0,86357.0,0.0115861]
[1766113693495,0.13654,86389.0,86374.0,0.0115837]
[1766113693693,0.0115812,86394.0,86374.0,0.0115837]
[1766113693694,0.00588,86394.0,86374.0,0.0115837]
[1766113693891,0.00588,86394.0,86377.0,0.0115834]
[1766113694290,0.1481218,86390.0,86375.0,0.00588]
[1766113694800,0.1481218,86390.0,86374.0,0.00017364]
[1766113695008,0.0115822,86387.0,86374.0,0.00017364]
[1766113695606,0.13654,86390.0,86359.0,2.4336]
[1766113695607,0.13654,86385.0,86364.0,0.00484]
[1766113695797,0.13654,86385.0,86364.0,0.0056]
[1766113696105,0.00588,86388.0,86364.0,0.0056]
[1766113696106,0.13654,86383.0,86364.0,0.0056]
[1766113696297,0.00588,86382.0,86365.0,0.0115851]
[1766113696602,0.13654,86379.0,86361.0,0.00588]
[1766113696810,0.0115834,86378.0,86361.0,0.00588]
[1766113697105,0.13654,86379.0,86361.0,0.00588]
[1766113697306,0.1481232,86379.0,86361.0,0.00588]
[1766113697507,0.0115837,86376.0,86361.0,0.00588]
[1766113697708,0.13654,86379.0,86361.0,0.00605364]
[1766113698205,0.00588,86382.0,86361.0,0.00605364]
[1766113698391,0.002,86386.0,86361.0,0.00605364]
[1766113698595,0.002,86386.0,86371.0,0.0115842]
[1766113698790,0.0115828,86383.0,86363.0,0.0115853]
[1766113698996,0.00017364,86391.0,86364.0,0.00588]
[1766113699202,0.0115821,86388.0,86368.0,0.0115846]
[1766113699405,0.0008,86376.0,86370.0,0.0115843]
[1766113699604,0.0008,86376.0,86364.0,0.00588]
[1766113699803,0.0115824,86385.0,86365.0,0.02969449]
[1766113700023,0.0115828,86382.0,86366.0,0.01810939]
[1766113700202,0.0115828,86382.0,86367.0,0.01810939]
[1766113700403,0.0115828,86382.0,86368.0,0.01810939]
[1766113700608,0.0115824,86385.0,86369.0,0.01810939]
[1766113700805,0.0115824,86385.0,86370.0,0.01810939]
[1766113701104,0.0115824,86385.0,86367.0,0.00588]
[1766113701105,0.0115833,86379.0,86371.0,0.01810939]
[1766113701296,0.13654,86379.0,86361.0,0.00017364]
[1766113701497,0.13654,86379.0,86362.0,0.00588]
[1766113701914,0.1481233,86379.0,86362.0,0.00588]
[1766113702604,0.13654,86379.0,86363.0,0.0115853]
[1766113702814,0.13654,86379.0,86362.0,0.00588]
[1766113703103,0.13654,86379.0,86362.0,0.0174655]
[1766113703307,0.13654,86379.0,86369.0,0.0115845]
[1766113703504,0.011583,86381.0,86363.0,0.0115853]
[1766113703706,0.0115833,86379.0,86362.0,0.00588]
[1766113703906,0.13654,86376.0,86361.0,3.64e-06]
[1766113704103,0.14242,86376.0,86361.0,3.64e-06]
[1766113704607,0.0115838,86375.0,86361.0,3.64e-06]
[1766113704906,0.00017364,86391.0,86361.0,3.64e-06]
[1766113705102,4e-08,86391.0,86388.0,0.011582]
[1766113705407,0.13654,86415.0,86386.0,0.00588]
[1766113705597,0.00588,86419.0,86400.0,0.20128332]
[1766113705799,0.00588,86419.0,86404.0,0.0115797]
[1766113706099,0.13654,86415.0,86395.0,0.00588]
[1766113706299,0.13654,86397.0,86375.0,0.0115836]
[1766113706512,0.13654,86391.0,86374.0,0.0115839]
[1766113706804,0.00588,86396.0,86371.0,0.01716065]
[1766113706805,0.00588,86396.0,86373.0,0.0115839]
[1766113707105,0.00588,86396.0,86380.0,0.20128332]
[1766113707309,0.00588,86396.0,86370.0,0.20128332]
[1766113707501,4e-08,86397.0,86393.0,0.0115812]
[1766113707816,4e-08,86397.0,86379.0,0.00012297]
[1766113707817,4e-08,86397.0,86390.0,0.0115817]
[1766113708003,4e-08,86397.0,86393.0,0.0115813]
[1766113708508,4e-08,86397.0,86392.0,0.0115814]
[1766113708702,4e-08,86397.0,86388.0,0.00588]
[1766113709005,4e-08,86397.0,86391.0,0.0115815]
[1766113709212,4e-08,86397.0,86388.0,0.017462]
[1766113709416,4e-08,86397.0,86379.0,0.00012297]
[1766113709714,4e-08,86397.0,86384.0,0.0115825]
[1766113709914,4e-08,86397.0,86384.0,0.00576]
[1766113710302,4e-08,86397.0,86379.0,0.00012297]
[1766113710303,0.0115809,86396.0,86380.0,0.011583]
[1766113710497,0.0115819,86389.0,86379.0,0.00012297]
[1766113710698,0.1481219,86389.0,86371.0,0.0115842]
[1766113711006,0.011582,86388.0,86369.0,0.0174645]
[1766113711200,4e-08,86397.0,86369.0,0.0174645]
[1766113711201,0.00588004,86397.0,86384.0,0.0115825]
[1766113711401,0.00588004,86397.0,86387.0,0.011582]
[1766113711402,4e-08,86397.0,86387.0,0.011582]
[1766113711598,4e-08,86397.0,86389.0,0.0115818]
[1766113711802,4e-08,86397.0,86387.0,0.20128332]
[1766113711803,4e-08,86397.0,86390.0,0.00588]
[1766113712410,4e-08,86397.0,86390.0,0.0174616]
[1766113712810,0.13654004,86397.0,86383.0,0.0001736]
[1766113713212,0.13654004,86397.0,86384.0,0.01810566]
[1766113713411,0.13654004,86397.0,86385.0,0.01810566]
[1766113713716,0.13654004,86397.0,86386.0,0.01810566]
[1766113713911,0.13654004,86397.0,86383.0,0.0001736]
[1766113714613,0.13654004,86397.0,86371.0,0.0115842]
[1766113714917,0.0115812,86394.0,86375.0,0.0115837]
[1766113715307,0.14812094,86397.0,86378.0,0.0115832]
[1766113715917,0.14812094,86397.0,86380.0,0.011583]
[1766113716118,0.14812094,86397.0,86377.0,0.0115834]
[1766113716415,0.13654004,86397.0,86381.0,0.0115828]
[1766113716608,0.13654004,86397.0,86378.0,0.0115833]
[1766113716808,0.14812094,86397.0,86380.0,0.011583]
[1766113717008,0.14812094,86397.0,86377.0,0.0115834]
[1766113717418,0.13654004,86397.0,86372.0,0.00588]
[1766113717814,0.13654004,86397.0,86382.0,0.0115827]
[1766113718317,0.13654004,86397.0,86380.0,0.00588]
[1766113718523,4e-08,86397.0,86369.0,0.0115845]
[1766113718713,4e-08,86397.0,86370.0,2.4382]
[1766113718916,4e-08,86397.0,86378.0,0.00231542]
[1766113719109,0.13654004,86397.0,86382.0,0.0115827]
[1766113719416,4e-08,86397.0,86386.0,0.0115822]
[1766113720413,4e-08,86397.0,86380.0,0.20128332]
[1766113720414,0.14812094,86397.0,86380.0,0.011583]
[1766113720618,0.13654004,86397.0,86381.0,0.00588]
[1766113721418,0.13654004,86397.0,86385.0,0.0115823]
[1766113721612,0.13654004,86397.0,86387.0,2.1e-06]
[1766113721814,0.13654004,86397.0,86384.0,0.0115824]
[1766113722214,0.14812094,86397.0,86381.0,0.00588]
[1766113722410,0.13654004,86397.0,86382.0,0.0174627]
[1766113722805,0.13633,86390.0,86360.0,0.21286902]
[1766113723013,0.13633,86369.0,86337.0,2.43304]
[1766113723215,0.00017364,86362.0,86345.0,0.00588]